[Event "*** SCC Grand Prix: Titled Tuesday Blitz"]
[Site "Chess.com"]
[Date "2020.10.13"]
[Round "10"]
[White "Omk124"]
[Black "Shield12"]
[Result "0-1"]
[WhiteElo "2515"]
[BlackElo "2828"]
[TimeControl "180+1"]
[EndTime "11:56:55 PDT"]
[Termination "Shield12 won by resignation"]

1. e4 {[%clk 0:03:00.9]} 1... c5 {[%clk 0:03:00.4]} 2. Nf3 {[%clk 0:03:01]} 2...
Nc6 {[%clk 0:03:00.9]} 3. d4 {[%clk 0:03:01.1]} 3... cxd4 {[%clk 0:03:01.8]} 4.
Nxd4 {[%clk 0:03:01.8]} 4... Nf6 {[%clk 0:03:02.5]} 5. Nc3 {[%clk 0:03:02.2]}
5... d6 {[%clk 0:03:03.1]} 6. g3 {[%clk 0:03:01.3]} 6... g6 {[%clk 0:03:02.6]}
7. Bg2 {[%clk 0:03:01.8]} 7... Nxd4 {[%clk 0:03:03.1]} 8. Qxd4 {[%clk
0:03:02.3]} 8... Bg7 {[%clk 0:03:03.7]} 9. O-O {[%clk 0:03:02.8]} 9... O-O
{[%clk 0:03:04.3]} 10. Qd3 {[%clk 0:03:03.2]} 10... Bd7 {[%clk 0:03:03.7]} 11.
Be3 {[%clk 0:03:03.3]} 11... a6 {[%clk 0:03:02.2]} 12. h3 {[%clk 0:03:03.3]}
12... Rc8 {[%clk 0:03:00.1]} 13. Rad1 {[%clk 0:02:58.2]} 13... Qa5 {[%clk
0:02:58.5]} 14. Rfe1 {[%clk 0:02:55.3]} 14... Rfd8 {[%clk 0:02:57.8]} 15. Bd4
{[%clk 0:02:55]} 15... Bc6 {[%clk 0:02:46.4]} 16. a3 {[%clk 0:02:53.6]} 16...
Nd7 {[%clk 0:02:37]} 17. Bxg7 {[%clk 0:02:43.4]} 17... Kxg7 {[%clk 0:02:37.9]}
18. b4 {[%clk 0:02:43]} 18... Qg5 {[%clk 0:02:34.8]} 19. f4 {[%clk 0:02:41.3]}
19... Qf6 {[%clk 0:02:32.5]} 20. Ne2 {[%clk 0:02:41.2]} 20... Bb5 {[%clk
0:02:27]} 21. Qd2 {[%clk 0:02:41.5]} 21... Nb6 {[%clk 0:02:11.6]} 22. Nd4 {[%clk
0:02:39.8]} 22... Nc4 {[%clk 0:02:10]} 23. Qc1 {[%clk 0:02:39.9]} 23... Ba4
{[%clk 0:02:09]} 24. Rd3 {[%clk 0:02:37.8]} 24... e5 {[%clk 0:02:05.2]} 25. Ne2
{[%clk 0:02:26.8]} 25... Bb5 {[%clk 0:01:48]} 26. Nc3 {[%clk 0:02:22.9]} 26...
Nb6 {[%clk 0:01:46.8]} 27. Nxb5 {[%clk 0:02:22.9]} 27... axb5 {[%clk 0:01:47.7]}
28. Red1 {[%clk 0:02:17.1]} 28... Rc6 {[%clk 0:01:46.2]} 29. fxe5 {[%clk
0:02:15.5]} 29... Qxe5 {[%clk 0:01:45.2]} 30. Qf4 {[%clk 0:02:16]} 30... Nc4
{[%clk 0:01:37.8]} 31. Rf1 {[%clk 0:02:08.4]} 31... Qxf4 {[%clk 0:01:32.7]} 32.
gxf4 {[%clk 0:02:08.5]} 32... Ra6 {[%clk 0:01:33.6]} 33. Ra1 {[%clk 0:02:00]}
33... Rda8 {[%clk 0:01:28.6]} 34. e5 {[%clk 0:02:00.4]} 34... dxe5 {[%clk
0:01:24.1]} 35. Bxb7 {[%clk 0:01:59.7]} 35... Rxa3 {[%clk 0:01:24.1]} 36. Raxa3
{[%clk 0:01:59.8]} 36... Rxa3 {[%clk 0:01:25]} 37. Rxa3 {[%clk 0:02:00]} 37...
Nxa3 {[%clk 0:01:25.9]} 38. fxe5 {[%clk 0:02:00.6]} 38... Nxc2 {[%clk
0:01:26.1]} 39. Bc6 {[%clk 0:02:00.8]} 39... Nxb4 {[%clk 0:01:13.4]} 40. Bxb5
{[%clk 0:02:00.7]} 40... Nd5 {[%clk 0:01:10.2]} 41. Kf2 {[%clk 0:01:59.1]} 41...
Kf8 {[%clk 0:01:08.6]} 42. Kf3 {[%clk 0:01:58.6]} 42... Ke7 {[%clk 0:01:08.1]}
43. Bc4 {[%clk 0:01:58.5]} 43... Nb6 {[%clk 0:01:07.9]} 44. Bb3 {[%clk
0:01:58.2]} 44... Nd7 {[%clk 0:01:07.7]} 45. Kf4 {[%clk 0:01:55.5]} 45... h6
{[%clk 0:01:07.7]} 46. h4 {[%clk 0:01:55.5]} 46... Nc5 {[%clk 0:01:07.4]} 47.
Bc4 {[%clk 0:01:54.9]} 47... Ne6+ {[%clk 0:01:07.2]} 48. Kg4 {[%clk 0:01:55.1]}
48... Ng7 {[%clk 0:01:03.7]} 49. Kf4 {[%clk 0:01:50.6]} 49... Nf5 {[%clk
0:01:01]} 50. h5 {[%clk 0:01:49.2]} 50... Nd4 {[%clk 0:00:58]} 51. hxg6 {[%clk
0:01:49.4]} 51... fxg6 {[%clk 0:00:58.9]} 52. Ke4 {[%clk 0:01:45.9]} 52... Ne6
{[%clk 0:00:57]} 53. Ba2 {[%clk 0:01:45.7]} 53... Nc5+ {[%clk 0:00:56.2]} 54.
Kd4 {[%clk 0:01:45]} 54... Nd7 {[%clk 0:00:53]} 55. Bb1 {[%clk 0:01:42.8]} 55...
Nf8 {[%clk 0:00:50.8]} 56. Kd5 {[%clk 0:01:39.2]} 56... Ne6 {[%clk 0:00:49.2]}
57. Ke4 {[%clk 0:01:30]} 57... Nf8 {[%clk 0:00:38.3]} 58. Kf4 {[%clk 0:01:29.3]}
58... Kf7 {[%clk 0:00:35.9]} 59. Ba2+ {[%clk 0:01:29]} 59... Kg7 {[%clk
0:00:35.7]} 60. Kg4 {[%clk 0:01:25.2]} 60... h5+ {[%clk 0:00:33.4]} 61. Kg5
{[%clk 0:01:23.5]} 61... Nh7+ {[%clk 0:00:33.6]} 62. Kh4 {[%clk 0:01:23.1]}
62... Kh6 {[%clk 0:00:32.3]} 63. e6 {[%clk 0:01:15.3]} 63... g5+ {[%clk
0:00:29.8]} 64. Kg3 {[%clk 0:01:14.5]} 64... Nf6 {[%clk 0:00:26.4]} 65. Bb3
{[%clk 0:01:12.5]} 65... Kg7 {[%clk 0:00:20.4]} 66. Kf3 {[%clk 0:01:03.5]} 66...
Kf8 {[%clk 0:00:19]} 67. Bc4 {[%clk 0:01:00]} 67... Ke7 {[%clk 0:00:19.5]} 68.
Bb3 {[%clk 0:01:00.3]} 68... Ne8 {[%clk 0:00:19.1]} 69. Ke4 {[%clk 0:00:59.5]}
69... Ng7 {[%clk 0:00:19.4]} 70. Bc4 {[%clk 0:00:52]} 70... Kf6 {[%clk
0:00:17.2]} 71. e7 {[%clk 0:00:44.8]} 71... Kxe7 {[%clk 0:00:17.2]} 72. Ke5
{[%clk 0:00:45.4]} 72... h4 {[%clk 0:00:13.7]} 73. Bf1 {[%clk 0:00:44.8]} 73...
Kf7 {[%clk 0:00:13.6]} 74. Bd3 {[%clk 0:00:30]} 74... h3 {[%clk 0:00:11.9]} 75.
Bf1 {[%clk 0:00:29.6]} 75... h2 {[%clk 0:00:11.1]} 76. Bg2 {[%clk 0:00:29.7]}
76... Kg6 {[%clk 0:00:11.5]} 77. Ke4 {[%clk 0:00:29.9]} 77... Kh5 {[%clk
0:00:11.9]} 78. Kf3 {[%clk 0:00:30.5]} 78... Kh4 {[%clk 0:00:12.8]} 79. Kf2
{[%clk 0:00:27.6]} 79... g4 {[%clk 0:00:12.7]} 80. Ba8 {[%clk 0:00:27.1]} 80...
g3+ {[%clk 0:00:13.6]} 81. Kg2 {[%clk 0:00:27.4]} 81... Kg4 {[%clk 0:00:13.2]}
82. Bf3+ {[%clk 0:00:26.6]} 82... Kf4 {[%clk 0:00:14.1]} 83. Bd1 {[%clk
0:00:26.8]} 83... Nf5 {[%clk 0:00:15]} 84. Ba4 {[%clk 0:00:21.8]} 84... Ne3+
{[%clk 0:00:15.9]} 85. Kh1 {[%clk 0:00:21.9]} 85... Ng4 {[%clk 0:00:16]} 86. Kg2
{[%clk 0:00:18.2]} 86... Nf2 {[%clk 0:00:16.9]} 0-1

[Event "*** SCC Grand Prix: Titled Tuesday Blitz"]
[Site "Chess.com"]
[Date "2020.10.13"]
[Round "10"]
[White "karwowskikacper"]
[Black "MisiekZielony"]
[Result "0-1"]
[WhiteElo "2330"]
[BlackElo "2261"]
[TimeControl "180+1"]
[EndTime "11:57:15 PDT"]
[Termination "MisiekZielony won by resignation"]

1. f4 {[%clk 0:03:00.9]} 1... d5 {[%clk 0:02:59.6]} 2. Nf3 {[%clk 0:02:59.1]}
2... Nf6 {[%clk 0:02:59.7]} 3. e3 {[%clk 0:02:57.8]} 3... g6 {[%clk 0:02:59.7]}
4. b3 {[%clk 0:02:58.1]} 4... Bg7 {[%clk 0:03:00.2]} 5. Bb2 {[%clk 0:02:59]}
5... O-O {[%clk 0:03:00.6]} 6. Be2 {[%clk 0:02:59]} 6... Bg4 {[%clk 0:02:57.9]}
7. O-O {[%clk 0:02:58.7]} 7... c6 {[%clk 0:02:57.8]} 8. Ne5 {[%clk 0:02:56.1]}
8... Bxe2 {[%clk 0:02:56.2]} 9. Qxe2 {[%clk 0:02:57]} 9... Nfd7 {[%clk
0:02:53.7]} 10. c4 {[%clk 0:02:29]} 10... Nxe5 {[%clk 0:02:19.9]} 11. fxe5
{[%clk 0:02:29.9]} 11... Nd7 {[%clk 0:02:19.3]} 12. d4 {[%clk 0:02:24.7]} 12...
e6 {[%clk 0:02:17.9]} 13. Nd2 {[%clk 0:02:22.9]} 13... f6 {[%clk 0:01:44.6]} 14.
e4 {[%clk 0:01:59]} 14... fxe5 {[%clk 0:01:37.4]} 15. exd5 {[%clk 0:01:30.5]}
15... exd5 {[%clk 0:01:34.4]} 16. cxd5 {[%clk 0:01:29.3]} 16... cxd5 {[%clk
0:01:28.4]} 17. dxe5 {[%clk 0:01:25.9]} 17... Re8 {[%clk 0:01:11.6]} 18. Qf3
{[%clk 0:00:59.7]} 18... Nxe5 {[%clk 0:01:03.1]} 19. Bxe5 {[%clk 0:00:58.8]}
19... Bxe5 {[%clk 0:00:48.9]} 20. Rad1 {[%clk 0:00:54.9]} 20... Rf8 {[%clk
0:00:42.8]} 21. Qxf8+ {[%clk 0:00:36.8]} 21... Qxf8 {[%clk 0:00:38.7]} 22. Rxf8+
{[%clk 0:00:37.7]} 22... Rxf8 {[%clk 0:00:38.5]} 23. Nf3 {[%clk 0:00:38.6]}
23... Bc7 {[%clk 0:00:22.1]} 24. Rxd5 {[%clk 0:00:36.9]} 24... Bb6+ {[%clk
0:00:22.5]} 25. Kf1 {[%clk 0:00:36.2]} 25... Rc8 {[%clk 0:00:23]} 26. Rd2 {[%clk
0:00:34.7]} 26... Ba5 {[%clk 0:00:18.3]} 27. Re2 {[%clk 0:00:18.4]} 27... Rc1+
{[%clk 0:00:17.6]} 28. Kf2 {[%clk 0:00:18.7]} 28... Bb6+ {[%clk 0:00:17.7]} 29.
Kg3 {[%clk 0:00:19.3]} 29... Rc7 {[%clk 0:00:17.6]} 30. Re4 {[%clk 0:00:16.8]}
30... Rc2 {[%clk 0:00:13.5]} 31. a4 {[%clk 0:00:13.7]} 31... Rb2 {[%clk
0:00:12.6]} 32. b4 {[%clk 0:00:14]} 32... a6 {[%clk 0:00:12.6]} 33. a5 {[%clk
0:00:14.3]} 33... Bc7+ {[%clk 0:00:12.1]} 34. Kh3 {[%clk 0:00:14.1]} 34... Bd6
{[%clk 0:00:12.4]} 35. Rc4 {[%clk 0:00:10.6]} 35... Rxb4 {[%clk 0:00:09.1]} 36.
Rc8+ {[%clk 0:00:10.2]} 36... Kg7 {[%clk 0:00:09.2]} 37. Ng5 {[%clk 0:00:09.6]}
37... h6 {[%clk 0:00:08.8]} 38. Ne6+ {[%clk 0:00:09.8]} 38... Kf6 {[%clk
0:00:08.8]} 39. Nd8 {[%clk 0:00:10.5]} 39... Be7 {[%clk 0:00:06.2]} 40. Kg3
{[%clk 0:00:06.7]} 40... Rb5 {[%clk 0:00:04.8]} 41. h3 {[%clk 0:00:04.7]} 41...
Bxd8 {[%clk 0:00:04.7]} 42. Rxd8 {[%clk 0:00:05.6]} 42... Rxa5 {[%clk 0:00:05]}
43. Rd6+ {[%clk 0:00:05.8]} 43... Kf5 {[%clk 0:00:04.3]} 44. Kf3 {[%clk
0:00:05.5]} 44... Ra3+ {[%clk 0:00:04.3]} 45. Kf2 {[%clk 0:00:06]} 45... Rb3
{[%clk 0:00:04.7]} 46. g4+ {[%clk 0:00:05]} 46... Kf4 {[%clk 0:00:03.9]} 47.
Rxg6 {[%clk 0:00:04.7]} 47... Rxh3 {[%clk 0:00:03.2]} 48. Rb6 {[%clk 0:00:04.2]}
48... Kxg4 {[%clk 0:00:03]} 49. Rxb7 {[%clk 0:00:04.6]} 49... Ra3 {[%clk
0:00:02.8]} 50. Rg7+ {[%clk 0:00:04.3]} 50... Kf5 {[%clk 0:00:02.6]} 51. Rh7
{[%clk 0:00:04.3]} 51... Kg6 {[%clk 0:00:02.7]} 52. Rb7 {[%clk 0:00:04.5]} 52...
h5 {[%clk 0:00:02.5]} 53. Kg2 {[%clk 0:00:04.5]} 53... Kg5 {[%clk 0:00:02.7]}
54. Rb8 {[%clk 0:00:04.4]} 54... h4 {[%clk 0:00:02.3]} 55. Kh2 {[%clk
0:00:04.1]} 55... Kf5 {[%clk 0:00:02.5]} 56. Rf8+ {[%clk 0:00:04.3]} 56... Ke6
{[%clk 0:00:02.6]} 57. Rh8 {[%clk 0:00:04.5]} 57... Kd5 {[%clk 0:00:02.9]} 58.
Rxh4 {[%clk 0:00:04.1]} 58... a5 {[%clk 0:00:02.7]} 59. Kg2 {[%clk 0:00:04.4]}
59... Kc5 {[%clk 0:00:02.3]} 60. Kf2 {[%clk 0:00:04.7]} 60... Rd3 {[%clk
0:00:02.5]} 61. Ke2 {[%clk 0:00:05]} 61... Rd5 {[%clk 0:00:02.8]} 62. Rh8 {[%clk
0:00:05.6]} 62... Kb4 {[%clk 0:00:03]} 63. Rh4+ {[%clk 0:00:03.3]} 63... Kb3
{[%clk 0:00:02.9]} 64. Rh8 {[%clk 0:00:03.6]} 64... a4 {[%clk 0:00:02.9]} 65.
Rb8+ {[%clk 0:00:03.9]} 65... Kc3 {[%clk 0:00:03.3]} 66. Ra8 {[%clk 0:00:03.2]}
66... Kb3 {[%clk 0:00:03]} 67. Rb8+ {[%clk 0:00:03.4]} 67... Ka2 {[%clk
0:00:03.4]} 68. Ke1 {[%clk 0:00:03.5]} 68... a3 {[%clk 0:00:03.7]} 69. Ke2
{[%clk 0:00:03.9]} 69... Ka1 {[%clk 0:00:04.2]} 70. Ke1 {[%clk 0:00:04.2]} 70...
Rd4 {[%clk 0:00:04.4]} 71. Ke2 {[%clk 0:00:04.3]} 71... Ka2 {[%clk 0:00:04.5]}
72. Ke1 {[%clk 0:00:04.5]} 72... Rd6 {[%clk 0:00:04.6]} 73. Ke2 {[%clk
0:00:04.7]} 73... Rd7 {[%clk 0:00:05.3]} 74. Rb6 {[%clk 0:00:04.7]} 74... Rd5
{[%clk 0:00:05.1]} 75. Rb8 {[%clk 0:00:04.3]} 75... Ka1 {[%clk 0:00:05.1]} 76.
Rb7 {[%clk 0:00:04.3]} 76... a2 {[%clk 0:00:05]} 77. Rb6 {[%clk 0:00:04]} 77...
Rd8 {[%clk 0:00:05.2]} 78. Rb7 {[%clk 0:00:04.1]} 78... Rh8 {[%clk 0:00:05.4]}
79. Rb6 {[%clk 0:00:03.9]} 79... Rh1 {[%clk 0:00:04.9]} 80. Kd2 {[%clk
0:00:04.2]} 80... Rb1 {[%clk 0:00:05.5]} 81. Rc6 {[%clk 0:00:03.6]} 81... Rb2+
{[%clk 0:00:05.3]} 82. Kc3 {[%clk 0:00:02.5]} 82... Kb1 {[%clk 0:00:05.5]} 83.
Ra6 {[%clk 0:00:01.5]} 83... Rc2+ {[%clk 0:00:05.2]} 84. Kb3 {[%clk 0:00:01.4]}
84... Rb2+ {[%clk 0:00:05.5]} 85. Kc3 {[%clk 0:00:01.4]} 85... a1=Q {[%clk
0:00:06.1]} 86. Rxa1+ {[%clk 0:00:01.7]} 86... Kxa1 {[%clk 0:00:06.5]} 0-1